[Event "10th Cesme Open-B 2024"]
[Site "Cesme"]
[Date "2024.06.24"]
[Round "2"]
[White "Yelligedik, Murat"]
[Black "Karadag, Eflatun Cem"]
[Result "1/2-1/2"]
[ECO "C41"]
[WhiteElo "1984"]
[BlackElo "1838"]
[Annotator "RC"]
[PlyCount "115"]
[EventDate "2024.06.23"]
[EventType "swiss"]
[EventCountry "TUR"]
[SourceTitle "playchess.com"]
[Source "ChessBase"]
[SourceQuality "1"]
[TimeControl "5400+30"]

1. e4 {[%emt 0:01:00]} e5 {[%emt 0:01:00]} 2. Nf3 {[%emt 0:00:00]} d6 {[%emt 0:00:30]} 3. d4 {[%emt 0:00:00]} exd4 {[%emt 0:00:30]} 4. Nxd4 {[%emt 0:00:30]} Nf6 {[%emt 0:00:30]} 5. Nc3 {[%emt 0:00:00]} Be7 {[%emt 0:00:00]} 6. Be2 {[%emt 0:00:00]} O-O {[%emt 0:00:00]} 7. Bf4 {[%emt 0:00:30]} Re8 {[%emt 0:03:30]} 8. Qd3 {[%emt 0:00:30]} Nbd7 {[%emt 0:01:30]} 9. O-O-O {[%emt 0:02:30]} Nc5 {[%emt 0:04:30]} 10. Qe3 {[%emt 0:00:30]} Bf8 {[%emt 0:01:30]} 11. f3 {[%emt 0:08:30]} c6 {[%emt 0:01:30]} 12. Qf2 {[%emt 0:12:30]} Qa5 {[%emt 0:02:30]} 13. Kb1 {[%emt 0:00:30]} Bd7 {[%emt 0:04:30]} 14. Nb3 {[%emt 0:04:30]} Nxb3 {[%emt 0:01:30]} 15. axb3 {[%emt 0:00:00]} d5 {[%emt 0:02:30]} 16. Bg5 {[%emt 0:03:00]} Be7 {[%emt 0:05:30]} 17. h4 {[%emt 0:10:30]} Be6 {[%emt 0:02:30]} 18. e5 {[%emt 0:00:30]} Nd7 {[%emt 0:01:30]} 19. Bxe7 {[%emt 0:00:30]} Rxe7 {[%emt 0:00:30]} 20. f4 {[%emt 0:01:30]} Qc5 {[%emt 0:01:30]} 21. Qf1 {[%emt 0:03:30]} f5 {[%emt 0:01:30]} 22. exf6 {[%emt 0:03:30]} Nxf6 {[%emt 0:01:30]} 23. f5 {[%emt 0:00:30]} d4 {[%emt 0:01:30]} 24. Qg1 {[%emt 0:07:30]} Bxf5 {[%emt 0:07:30]} 25. Rxd4 {[%emt 0:15:30]} Rae8 {[%emt 0:03:30]} 26. b4 {[%emt 0:06:09]} Qb6 {[%emt 0:04:30]} 27. Bc4+ {[%emt 0:05:05]} Be6 {[%emt 0:03:30]} 28. Bxe6+ {[%emt 0:03:53]} Rxe6 {[%emt 0:00:30]} 29. Qd1 {[%emt 0:00:25]} h6 {[%emt 0:01:30]} 30. g4 {[%emt 0:03:56]} Ne4 {[%emt 0:04:30]} 31. Rxe4 {[%emt 0:02:24]} Rxe4 {[%emt 0:00:30]} 32. Nxe4 {[%emt 0:00:30]} Rxe4 {[%emt 0:00:00]} 33. c3 {[%emt 0:00:54]} Qf2 {[%emt 0:02:00]} 34. h5 {[%emt 0:05:37]} Qe2 {[%emt 0:00:30]} 35. Qxe2 {[%emt 0:00:30]} Rxe2 {[%emt 0:00:30]} 36. Rg1 {[%emt 0:00:35]} Kf7 {[%emt 0:00:00]} 37. Rf1+ {[%emt 0:00:53]} Ke6 {[%emt 0:00:00]} 38. Rf4 {[%emt 0:00:00]} b5 {[%emt 0:02:30]} 39. Ka2 {[%emt 0:00:33]} Rg2 {[%emt 0:00:30]} 40. c4 {[%emt 0:00:28]} a6 {[%emt 0:01:30]} 41. c5 {[%emt 0:00:18]} Ke5 {[%emt 0:00:30]} 42. Rf5+ {[%emt 0:00:46]} Ke4 {[%emt 0:01:30]} 43. Rf7 {[%emt 0:00:30]} Rxg4 {[%emt 0:00:30]} 44. Rd7 {[%emt 0:00:10]} Rg5 {[%emt 0:01:30]} 45. Rd6 {[%emt 0:00:30]} Rxh5 {[%emt 0:00:30]} 46. Rxc6 {[%emt 0:00:00]} Kd5 {[%emt 0:00:30]} 47. Rxa6 {[%emt 0:00:47]} Rh4 {[%emt 0:02:30]} 48. Rd6+ {[%emt 0:00:40]} Ke5 {[%emt 0:01:30]} 49. Ka3 {[%emt 0:00:36]} Rf4 {[%emt 0:01:30]} 50. Rb6 {[%emt 0:00:20]} h5 {[%emt 0:00:30]} 51. Rxb5 {[%emt 0:01:09]} h4 {[%emt 0:00:30]} 52. c6+ {[%emt 0:00:34]} Kd6 {[%emt 0:00:30]} 53. Rc5 {[%emt 0:00:30]} Kc7 {[%emt 0:00:00]} 54. b5 {[%emt 0:00:00]} Rf6 {[%emt 0:03:00]} 55. b6+ {[%emt 0:00:00]} Kc8 {[%emt 0:00:00]} 56. b7+ {[%emt 0:00:44]} Kc7 {[%emt 0:00:00]} 57. Rb5 {[%emt 0:00:30]} Rf8 {[%emt 0:00:30]} 58. Rh5 {[%emt 0:01:00]} 1/2-1/2

[Event "10th Cesme Open-B 2024"]
[Site "Cesme"]
[Date "2024.06.24"]
[Round "2"]
[White "Turgut, Hakan"]
[Black "Yenil, Mucahit"]
[Result "1-0"]
[ECO "A44"]
[WhiteElo "1979"]
[BlackElo "1827"]
[Annotator "NA RC"]
[PlyCount "71"]
[EventDate "2024.06.23"]
[EventType "swiss"]
[EventCountry "TUR"]
[SourceTitle "playchess.com"]
[Source "ChessBase"]
[SourceQuality "1"]
[TimeControl "5400+30"]

1. d4 {[%emt 0:02:00]} c5 {[%emt 0:01:00]} 2. d5 {[%emt 0:00:30]} e5 {[%emt 0:00:30]} 3. e4 {[%emt 0:00:30]} d6 {[%emt 0:00:00]} 4. c4 {[%emt 0:00:30]} Be7 {[%emt 0:00:00]} 5. Nf3 {[%emt 0:06:30]} Bg4 {[%emt 0:00:00]} 6. Nbd2 {[%emt 0:00:30]} Nd7 {[%emt 0:03:00]} 7. Be2 {[%emt 0:07:30]} Ngf6 {[%emt 0:00:30]} 8. O-O {[%emt 0:01:30]} Bxf3 {[%emt 0:02:30]} 9. Bxf3 {[%emt 0:00:30]} O-O {[%emt 0:00:30]} 10. g3 {[%emt 0:02:30]} Ne8 {[%emt 0:00:30]} 11. Bg2 {[%emt 0:04:30]} Nc7 {[%emt 0:00:00]} 12. a4 {[%emt 0:06:30]} a6 {[%emt 0:02:00]} 13. a5 {[%emt 0:00:30]} b5 {[%emt 0:00:30]} 14. axb6 {[%emt 0:01:30]} Nxb6 {[%emt 0:00:00]} 15. Qb3 {[%emt 0:05:30]} Rb8 {[%emt 0:02:00]} 16. Qc2 {[%emt 0:00:30]} a5 {[%emt 0:02:30]} 17. Rxa5 {[%emt 0:01:30]} Ra8 {[%emt 0:01:30]} 18. Nb3 {[%emt 0:01:30]} Na6 {[%emt 0:00:30]} 19. Bd2 {[%emt 0:01:30]} Qc7 {[%emt 0:01:30]} 20. Rb5 {[%emt 0:02:30]} Nb4 {[%emt 0:00:30]} 21. Bxb4 {[%emt 0:00:30]} cxb4 {[%emt 0:00:30]} 22. Rxb4 {[%emt 0:01:30]} f5 {[%emt 0:01:30]} 23. exf5 {[%emt 0:00:30]} Rfc8 {[%emt 0:00:30]} 24. Nd2 {[%emt 0:05:30]} Qc5 {[%emt 0:00:00]} 25. Qb3 {[%emt 0:01:30]} Rcb8 {[%emt 0:03:00]} 26. Ne4 {[%emt 0:01:30]} Qc7 {[%emt 0:00:30]} 27. c5 {[%emt 0:03:30]} Nc8 {[%emt 0:00:00]} 28. c6 {[%emt 0:03:30]} Rxb4 {[%emt 0:02:00]} 29. Qxb4 {[%emt 0:00:30]} Rb8 {[%emt 0:00:00]} 30. Qd2 {[%emt 0:02:30]} Bd8 {[%emt 0:02:00]} 31. f6 {[%emt 0:03:30]} gxf6 {[%emt 0:00:30]} 32. Bh3 {[%emt 0:00:30]} Na7 {[%emt 0:00:30]} 33. Qh6 {[%emt 0:00:30]} Qe7 {[%emt 0:00:30]} 34. f4 {[%emt 0:03:30]} Rb4 {[%emt 0:02:30]} 35. Be6+ {[%emt 0:00:30]} Kh8 {[%emt 0:00:00]} 36. fxe5 {[%emt 0:02:30]} 1-0

[Event "10th Cesme Open-B 2024"]
[Site "Cesme"]
[Date "2024.06.24"]
[Round "2"]
[White "Masiya, Mfundo"]
[Black "Bozdag, Armagan Emre"]
[Result "1-0"]
[ECO "B52"]
[WhiteElo "1971"]
[BlackElo "1759"]
[Annotator "NA RC"]
[PlyCount "109"]
[EventDate "2024.06.23"]
[EventType "swiss"]
[EventCountry "TUR"]
[SourceTitle "playchess.com"]
[Source "ChessBase"]
[SourceQuality "1"]
[TimeControl "5400+30"]

1. e4 {[%emt 0:07:00]} c5 {[%emt 0:01:00]} 2. Nf3 {[%emt 0:00:30]} d6 {[%emt 0:00:00]} 3. Bb5+ {[%emt 0:01:30]} Bd7 {[%emt 0:01:00]} 4. Bxd7+ {[%emt 0:00:30]} Qxd7 {[%emt 0:00:30]} 5. O-O {[%emt 0:00:30]} Nf6 {[%emt 0:00:30]} 6. Qe2 {[%emt 0:00:30]} Nc6 {[%emt 0:00:00]} 7. c3 {[%emt 0:00:00]} g5 {[%emt 0:05:00]} 8. Nxg5 {[%emt 0:05:00]} Rg8 {[%emt 0:01:30]} 9. f4 {[%emt 0:03:30]} h6 {[%emt 0:10:30]} 10. Nf3 {[%emt 0:00:30]} Qg4 {[%emt 0:04:30]} 11. d3 {[%emt 0:03:30]} Nh5 {[%emt 0:01:30]} 12. g3 {[%emt 0:28:30]} e5 {[%emt 0:13:30]} 13. fxe5 {[%emt 0:03:30]} Nxe5 {[%emt 0:00:30]} 14. Rf2 {[%emt 0:00:30]} Ng6 {[%emt 0:31:30]} 15. Ne1 {[%emt 0:06:30]} Qh3 {[%emt 0:05:30]} 16. Ng2 {[%emt 0:10:30]} Bg7 {[%emt 0:02:58]} 17. Nd2 {[%emt 0:08:43]} O-O-O {[%emt 0:04:29]} 18. Nf1 {[%emt 0:04:32]} Be5 {[%emt 0:06:55]} 19. Qf3 {[%emt 0:03:29]} Ne7 {[%emt 0:04:31]} 20. Bf4 {[%emt 0:06:54]} Ng6 {[%emt 0:03:08]} 21. Be3 {[%emt 0:00:37]} Kb8 {[%emt 0:01:42]} 22. Qf5 {[%emt 0:00:41]} Qxf5 {[%emt 0:00:13]} 23. Rxf5 {[%emt 0:00:02]} Ng7 {[%emt 0:00:52]} 24. Rxf7 {[%emt 0:00:37]} Ne6 {[%emt 0:00:08]} 25. Rd1 {[%emt 0:01:02]} h5 {[%emt 0:00:28]} 26. d4 {[%emt 0:02:13]} cxd4 {[%emt 0:00:30]} 27. cxd4 {[%emt 0:00:30]} Bh8 {[%emt 0:00:00]} 28. h3 {[%emt 0:00:59]} Rc8 {[%emt 0:00:49]} 29. Rd7 {[%emt 0:00:48]} Rgd8 {[%emt 0:00:31]} 30. Rxd8 {[%emt 0:00:23]} Nxd8 {[%emt 0:00:24]} 31. Ne1 {[%emt 0:00:32]} Rc4 {[%emt 0:00:38]} 32. b3 {[%emt 0:01:08]} Rc3 {[%emt 0:00:24]} 33. Kf2 {[%emt 0:00:27]} Nc6 {[%emt 0:00:23]} 34. Ke2 {[%emt 0:00:17]} Nce7 {[%emt 0:01:09]} 35. Kd2 {[%emt 0:00:30]} Rc8 {[%emt 0:00:00]} 36. Nd3 {[%emt 0:00:32]} Rf8 {[%emt 0:00:15]} 37. Ke2 {[%emt 0:00:39]} Re8 {[%emt 0:00:49]} 38. Nf4 {[%emt 0:00:50]} h4 {[%emt 0:00:39]} 39. g4 {[%emt 0:00:16]} Nxf4+ {[%emt 0:00:30]} 40. Bxf4 {[%emt 0:00:30]} Kc7 {[%emt 0:00:01]} 41. Ne3 {[%emt 0:00:46]} Kd7 {[%emt 0:00:30]} 42. Kf3 {[%emt 0:00:30]} Rc8 {[%emt 0:00:30]} 43. Nc4 {[%emt 0:00:30]} d5 {[%emt 0:00:30]} 44. exd5 {[%emt 0:00:30]} Nxd5 {[%emt 0:00:30]} 45. Ne5+ {[%emt 0:00:30]} Bxe5 {[%emt 0:00:43]} 46. dxe5 {[%emt 0:00:24]} Ke6 {[%emt 0:00:04]} 47. Rd2 {[%emt 0:00:32]} Rf8 {[%emt 0:01:13]} 48. Rd4 {[%emt 0:00:12]} Rc8 {[%emt 0:00:08]} 49. Rc4 {[%emt 0:00:50]} Rxc4 {[%emt 0:01:01]} 50. bxc4 {[%emt 0:00:06]} Nb6 {[%emt 0:00:10]} 51. Ke4 {[%emt 0:00:45]} Nxc4 {[%emt 0:00:35]} 52. g5 {[%emt 0:00:32]} Nb6 {[%emt 0:00:30]} 53. g6 {[%emt 0:00:24]} Nc8 {[%emt 0:00:30]} 54. Bg5 {[%emt 0:00:00]} b5 {[%emt 0:00:29]} 55. Bxh4 {[%emt 0:00:25]} 1-0

[Event "10th Cesme Open-B 2024"]
[Site "Cesme"]
[Date "2024.06.24"]
[Round "2"]
[White "Turan, Asim"]
[Black "Berikkyzy Alanna"]
[Result "1/2-1/2"]
[ECO "E04"]
[WhiteElo "1970"]
[BlackElo "1871"]
[Annotator "RC"]
[PlyCount "144"]
[EventDate "2024.06.23"]
[EventType "swiss"]
[EventCountry "TUR"]
[SourceTitle "playchess.com"]
[Source "ChessBase"]
[SourceQuality "1"]
[TimeControl "5400+30"]

1. d4 {[%emt 0:01:00]} Nf6 {[%emt 0:01:00]} 2. g3 {[%emt 0:00:00]} e6 {[%emt 0:00:30]} 3. c4 {[%emt 0:00:00]} d5 {[%emt 0:00:30]} 4. Nf3 {[%emt 0:00:30]} dxc4 {[%emt 0:00:30]} 5. Qc2 {[%emt 0:00:30]} Nc6 {[%emt 0:02:30]} 6. Qxc4 {[%emt 0:00:30]} Nd7 {[%emt 0:02:30]} 7. Bg2 {[%emt 0:05:30]} Nb6 {[%emt 0:00:30]} 8. Qd3 {[%emt 0:01:30]} e5 {[%emt 0:00:30]} 9. Nxe5 {[%emt 0:06:30]} Nb4 {[%emt 0:01:30]} 10. Qd1 {[%emt 0:00:30]} Qxd4 {[%emt 0:02:30]} 11. Qxd4 {[%emt 0:00:30]} Nc2+ {[%emt 0:00:30]} 12. Kf1 {[%emt 0:00:30]} Nxd4 {[%emt 0:00:00]} 13. Nc3 {[%emt 0:00:30]} c6 {[%emt 0:07:00]} 14. Rb1 {[%emt 0:15:30]} f6 {[%emt 0:11:30]} 15. Nf3 {[%emt 0:07:30]} Ne6 {[%emt 0:07:30]} 16. Bh3 {[%emt 0:05:30]} Kf7 {[%emt 0:02:30]} 17. Kg2 {[%emt 0:00:30]} h5 {[%emt 0:04:30]} 18. e4 {[%emt 0:03:30]} g5 {[%emt 0:01:30]} 19. Bxe6+ {[%emt 0:04:30]} Bxe6 {[%emt 0:00:00]} 20. h3 {[%emt 0:03:30]} Rd8 {[%emt 0:03:00]} 21. e5 {[%emt 0:00:30]} Bxh3+ {[%emt 0:09:30]} 22. Rxh3 {[%emt 0:00:30]} g4 {[%emt 0:00:00]} 23. Rh4 {[%emt 0:00:30]} gxf3+ {[%emt 0:00:00]} 24. Kxf3 {[%emt 0:00:00]} fxe5 {[%emt 0:00:30]} 25. Bg5 {[%emt 0:02:00]} Rd4 {[%emt 0:04:30]} 26. Ne4 {[%emt 0:03:30]} Nd5 {[%emt 0:04:30]} 27. Rbh1 {[%emt 0:05:30]} Kg6 {[%emt 0:01:30]} 28. Be3 {[%emt 0:01:30]} Nxe3 {[%emt 0:01:30]} 29. fxe3 {[%emt 0:00:00]} Rd7 {[%emt 0:00:30]} 30. g4 {[%emt 0:00:00]} Rdh7 {[%emt 0:00:30]} 31. Rg1 {[%emt 0:04:30]} hxg4+ {[%emt 0:08:30]} 32. Rhxg4+ {[%emt 0:00:30]} Kf5 {[%emt 0:00:30]} 33. Rg5+ {[%emt 0:01:30]} Ke6 {[%emt 0:00:30]} 34. Rg6+ {[%emt 0:00:00]} Ke7 {[%emt 0:04:30]} 35. Nc5 {[%emt 0:10:05]} Rh3+ {[%emt 0:02:41]} 36. Ke4 {[%emt 0:02:40]} R8h4+ {[%emt 0:01:26]} 37. R1g4 {[%emt 0:01:35]} Rxg4+ {[%emt 0:03:35]} 38. Rxg4 {[%emt 0:00:08]} b6 {[%emt 0:00:47]} 39. Nd3 {[%emt 0:00:26]} Bh6 {[%emt 0:00:42]} 40. Nxe5 {[%emt 0:00:40]} Rxe3+ {[%emt 0:00:30]} 41. Kf5 {[%emt 0:00:05]} Re2 {[%emt 0:00:56]} 42. Nxc6+ {[%emt 0:01:22]} Kf8 {[%emt 0:02:07]} 43. Rb4 {[%emt 0:02:16]} Bd2 {[%emt 0:01:49]} 44. Rd4 {[%emt 0:01:05]} Bc1 {[%emt 0:00:47]} 45. Rd8+ {[%emt 0:00:42]} Kf7 {[%emt 0:00:16]} 46. Rd7+ {[%emt 0:05:06]} Ke8 {[%emt 0:00:30]} 47. Rxa7 {[%emt 0:00:00]} Bxb2 {[%emt 0:00:40]} 48. Rb7 {[%emt 0:00:48]} Bc3 {[%emt 0:00:44]} 49. a4 {[%emt 0:00:05]} Ra2 {[%emt 0:01:43]} 50. Ke6 {[%emt 0:00:30]} Re2+ {[%emt 0:00:00]} 51. Kd5 {[%emt 0:01:04]} Ra2 {[%emt 0:00:00]} 52. Re7+ {[%emt 0:02:04]} Kf8 {[%emt 0:00:26]} 53. Re4 {[%emt 0:00:00]} Rb2 {[%emt 0:00:29]} 54. Rc4 {[%emt 0:03:30]} Bd2 {[%emt 0:00:36]} 55. Nd4 {[%emt 0:00:01]} Be3 {[%emt 0:01:29]} 56. Rc8+ {[%emt 0:00:36]} Kf7 {[%emt 0:00:30]} 57. Nb5 {[%emt 0:00:00]} Bc5 {[%emt 0:00:32]} 58. Kc6 {[%emt 0:00:13]} Ke7 {[%emt 0:00:33]} 59. Nc7 {[%emt 0:00:30]} Rc2 {[%emt 0:00:30]} 60. Re8+ {[%emt 0:00:30]} Kf7 {[%emt 0:00:30]} 61. Re4 {[%emt 0:01:36]} Be7+ {[%emt 0:01:36]} 62. Kb7 {[%emt 0:00:30]} Bc5 {[%emt 0:00:30]} 63. Nd5 {[%emt 0:00:30]} Rb2 {[%emt 0:00:30]} 64. Kc6 {[%emt 0:00:30]} Bg1 {[%emt 0:01:13]} 65. Re7+ {[%emt 0:00:50]} Kf8 {[%emt 0:00:30]} 66. Rb7 {[%emt 0:00:00]} Rc2+ {[%emt 0:00:17]} 67. Kd7 {[%emt 0:00:24]} Rd2 {[%emt 0:01:13]} 68. Kc6 {[%emt 0:00:52]} Rc2+ {[%emt 0:00:28]} 69. Kd6 {[%emt 0:00:53]} Ra2 {[%emt 0:01:15]} 70. Nf6 {[%emt 0:02:12]} Rd2+ {[%emt 0:00:10]} 71. Ke6 {[%emt 0:00:50]} Re2+ {[%emt 0:00:30]} 72. Kd5 {[%emt 0:00:30]} Ra2 {[%emt 0:00:00]} 1/2-1/2

[Event "10th Cesme Open-B 2024"]
[Site "Cesme"]
[Date "2024.06.24"]
[Round "2"]
[White "Ilgaz, Yusuf Kerem"]
[Black "Yamakoglu, Mustafa Ege"]
[Result "1-0"]
[ECO "B41"]
[WhiteElo "1966"]
[BlackElo "1818"]
[Annotator "NA RC"]
[PlyCount "93"]
[EventDate "2024.06.23"]
[EventType "swiss"]
[EventCountry "TUR"]
[SourceTitle "playchess.com"]
[Source "ChessBase"]
[SourceQuality "1"]
[TimeControl "5400+30"]

1. e4 {[%emt 0:01:00]} c5 {[%emt 0:01:00]} 2. Nf3 {[%emt 0:00:30]} a6 {[%emt 0:00:30]} 3. c4 {[%emt 0:00:00]} e6 {[%emt 0:00:30]} 4. Nc3 {[%emt 0:00:00]} Nc6 {[%emt 0:02:30]} 5. d4 {[%emt 0:00:30]} cxd4 {[%emt 0:00:30]} 6. Nxd4 {[%emt 0:00:30]} Qc7 {[%emt 0:00:30]} 7. Be3 {[%emt 0:00:30]} Nf6 {[%emt 0:02:30]} 8. Be2 {[%emt 0:00:00]} b6 {[%emt 0:00:30]} 9. O-O {[%emt 0:02:00]} Bb7 {[%emt 0:00:30]} 10. Nb3 {[%emt 0:00:30]} Be7 {[%emt 0:07:30]} 11. Na4 {[%emt 0:00:30]} Nxe4 {[%emt 0:05:30]} 12. Bxb6 {[%emt 0:00:30]} Qc8 {[%emt 0:02:30]} 13. Be3 {[%emt 0:01:30]} Qc7 {[%emt 0:02:30]} 14. Nac5 {[%emt 0:07:30]} Nxc5 {[%emt 0:03:30]} 15. Nxc5 {[%emt 0:00:30]} Bc8 {[%emt 0:04:30]} 16. a3 {[%emt 0:07:30]} d6 {[%emt 0:03:30]} 17. Na4 {[%emt 0:02:30]} a5 {[%emt 0:07:30]} 18. Nb6 {[%emt 0:15:30]} Rb8 {[%emt 0:01:30]} 19. Nxc8 {[%emt 0:00:30]} Qxc8 {[%emt 0:00:30]} 20. Qa4 {[%emt 0:01:30]} O-O {[%emt 0:03:30]} 21. Rab1 {[%emt 0:01:30]} f5 {[%emt 0:03:30]} 22. f4 {[%emt 0:05:30]} Bf6 {[%emt 0:06:30]} 23. b4 {[%emt 0:12:30]} axb4 {[%emt 0:02:30]} 24. axb4 {[%emt 0:00:30]} Bd4 {[%emt 0:00:30]} 25. Bxd4 {[%emt 0:01:30]} Nxd4 {[%emt 0:00:30]} 26. Qd1 {[%emt 0:00:30]} e5 {[%emt 0:01:30]} 27. Kh1 {[%emt 0:03:30]} Ra8 {[%emt 0:06:30]} 28. fxe5 {[%emt 0:01:30]} dxe5 {[%emt 0:00:30]} 29. c5 {[%emt 0:00:30]} Kh8 {[%emt 0:00:00]} 30. Bc4 {[%emt 0:05:30]} f4 {[%emt 0:02:00]} 31. Bd5 {[%emt 0:02:30]} Ra6 {[%emt 0:00:30]} 32. b5 {[%emt 0:06:30]} Rh6 {[%emt 0:00:30]} 33. c6 {[%emt 0:04:23]} Nf5 {[%emt 0:02:30]} 34. b6 {[%emt 0:05:46]} Ne3 {[%emt 0:01:30]} 35. Qf3 {[%emt 0:02:27]} Rd6 {[%emt 0:12:31]} 36. Be4 {[%emt 0:03:39]} Nc4 {[%emt 0:01:27]} 37. Qh3 {[%emt 0:02:40]} Qxh3 {[%emt 0:02:18]} 38. gxh3 {[%emt 0:00:09]} Nxb6 {[%emt 0:04:19]} 39. Rxb6 {[%emt 0:00:07]} g5 {[%emt 0:01:50]} 40. Rfb1 {[%emt 0:01:39]} f3 {[%emt 0:00:41]} 41. Rb8 {[%emt 0:01:06]} Rdf6 {[%emt 0:00:30]} 42. Rxf8+ {[%emt 0:00:30]} Rxf8 {[%emt 0:00:00]} 43. c7 {[%emt 0:01:01]} f2 {[%emt 0:00:17]} 44. Bf5 {[%emt 0:00:08]} e4 {[%emt 0:00:16]} 45. c8=Q {[%emt 0:00:30]} Rxc8 {[%emt 0:00:04]} 46. Bxc8 {[%emt 0:00:18]} e3 {[%emt 0:00:30]} 47. Kg2 {[%emt 0:00:00]} 1-0

[Event "10th Cesme Open-B 2024"]
[Site "Cesme"]
[Date "2024.06.24"]
[Round "2"]
[White "Gonullu, Muhammed Sinan"]
[Black "Cakir, Mert"]
[Result "1/2-1/2"]
[ECO "E60"]
[WhiteElo "1922"]
[BlackElo "1828"]
[Annotator "NA RC"]
[PlyCount "144"]
[EventDate "2024.06.23"]
[EventType "swiss"]
[EventCountry "TUR"]
[SourceTitle "playchess.com"]
[Source "ChessBase"]
[SourceQuality "1"]
[TimeControl "5400+30"]

1. Nf3 {[%emt 0:02:00]} Nf6 {[%emt 0:01:00]} 2. b3 {[%emt 0:03:30]} g6 {[%emt 0:01:30]} 3. Bb2 {[%emt 0:00:30]} Bg7 {[%emt 0:00:30]} 4. g3 {[%emt 0:00:30]} O-O {[%emt 0:01:30]} 5. Bg2 {[%emt 0:00:00]} c5 {[%emt 0:01:30]} 6. O-O {[%emt 0:00:00]} Nc6 {[%emt 0:00:00]} 7. c4 {[%emt 0:08:30]} d6 {[%emt 0:03:00]} 8. d4 {[%emt 0:01:30]} Ne4 {[%emt 0:06:30]} 9. Nbd2 {[%emt 0:01:30]} Nxd2 {[%emt 0:06:30]} 10. Qxd2 {[%emt 0:00:30]} cxd4 {[%emt 0:02:30]} 11. Nxd4 {[%emt 0:00:00]} Bd7 {[%emt 0:01:30]} 12. Rfd1 {[%emt 0:01:00]} a6 {[%emt 0:04:30]} 13. c5 {[%emt 0:30:30]} dxc5 {[%emt 0:05:30]} 14. Nxc6 {[%emt 0:05:30]} Bxc6 {[%emt 0:00:00]} 15. Bxg7 {[%emt 0:01:30]} Qxd2 {[%emt 0:00:00]} 16. Rxd2 {[%emt 0:00:00]} Kxg7 {[%emt 0:00:30]} 17. Bxc6 {[%emt 0:00:00]} bxc6 {[%emt 0:00:00]} 18. Rc1 {[%emt 0:09:30]} Rfd8 {[%emt 0:20:00]} 19. Rdc2 {[%emt 0:04:30]} a5 {[%emt 0:04:30]} 20. Rxc5 {[%emt 0:00:30]} a4 {[%emt 0:00:30]} 21. b4 {[%emt 0:01:30]} a3 {[%emt 0:02:30]} 22. Ra5 {[%emt 0:05:30]} Rab8 {[%emt 0:06:30]} 23. Rc4 {[%emt 0:02:30]} Rd2 {[%emt 0:02:30]} 24. Rxa3 {[%emt 0:00:30]} Rxe2 {[%emt 0:00:30]} 25. Ra7 {[%emt 0:13:42]} c5 {[%emt 0:04:30]} 26. Kf1 {[%emt 0:00:39]} Rd2 {[%emt 0:01:30]} 27. a3 {[%emt 0:04:14]} cxb4 {[%emt 0:00:30]} 28. axb4 {[%emt 0:00:01]} Rb2 {[%emt 0:00:30]} 29. Rxe7 {[%emt 0:01:37]} R2xb4 {[%emt 0:00:30]} 30. Rcc7 {[%emt 0:00:00]} Rf8 {[%emt 0:00:30]} 31. Kg2 {[%emt 0:00:00]} Rb3 {[%emt 0:00:30]} 32. g4 {[%emt 0:00:00]} h6 {[%emt 0:03:30]} 33. Ra7 {[%emt 0:00:03]} Rc3 {[%emt 0:00:30]} 34. Red7 {[%emt 0:00:10]} Rb3 {[%emt 0:00:30]} 35. f3 {[%emt 0:00:00]} Rb4 {[%emt 0:01:30]} 36. Kg3 {[%emt 0:00:03]} Rc4 {[%emt 0:00:49]} 37. h4 {[%emt 0:00:08]} Rb4 {[%emt 0:01:06]} 38. Re7 {[%emt 0:01:28]} Rc4 {[%emt 0:00:14]} 39. Reb7 {[%emt 0:01:34]} Rd4 {[%emt 0:00:30]} 40. Rb5 {[%emt 0:00:00]} Rfd8 {[%emt 0:00:54]} 41. h5 {[%emt 0:00:08]} gxh5 {[%emt 0:03:56]} 42. Rxh5 {[%emt 0:00:48]} R8d5 {[%emt 0:00:51]} 43. Rh3 {[%emt 0:00:09]} Rd6 {[%emt 0:00:47]} 44. Ra3 {[%emt 0:00:30]} Rd3 {[%emt 0:00:21]} 45. Rxd3 {[%emt 0:00:58]} Rxd3 {[%emt 0:00:30]} 46. Kf4 {[%emt 0:00:00]} Kg6 {[%emt 0:00:24]} 47. Ke4 {[%emt 0:00:29]} Ra3 {[%emt 0:00:30]} 48. Rh5 {[%emt 0:00:00]} Ra4+ {[%emt 0:00:00]} 49. Ke3 {[%emt 0:00:25]} Ra3+ {[%emt 0:00:29]} 50. Kf4 {[%emt 0:00:30]} Ra4+ {[%emt 0:00:30]} 51. Kg3 {[%emt 0:00:00]} Ra3 {[%emt 0:00:00]} 52. Rf5 {[%emt 0:00:00]} Rb3 {[%emt 0:00:00]} 53. Kh4 {[%emt 0:00:10]} Ra3 {[%emt 0:00:15]} 54. Rf4 {[%emt 0:00:17]} Rb3 {[%emt 0:00:30]} 55. Rf5 {[%emt 0:00:00]} Ra3 {[%emt 0:00:31]} 56. Rc5 {[%emt 0:00:21]} Rxf3 {[%emt 0:00:30]} 57. Rc6+ {[%emt 0:00:00]} f6 {[%emt 0:00:19]} 58. Rc5 {[%emt 0:00:00]} Re3 {[%emt 0:00:50]} 59. Ra5 {[%emt 0:00:08]} Re5 {[%emt 0:00:30]} 60. Ra7 {[%emt 0:00:00]} Rb5 {[%emt 0:00:29]} 61. Rc7 {[%emt 0:00:00]} h5 {[%emt 0:01:25]} 62. gxh5+ {[%emt 0:00:19]} Rxh5+ {[%emt 0:00:30]} 63. Kg4 {[%emt 0:00:30]} Rg5+ {[%emt 0:00:00]} 64. Kf4 {[%emt 0:00:00]} Ra5 {[%emt 0:00:17]} 65. Rc4 {[%emt 0:00:00]} Rh5 {[%emt 0:00:21]} 66. Kg4 {[%emt 0:00:08]} f5+ {[%emt 0:00:30]} 67. Kg3 {[%emt 0:00:00]} Kg5 {[%emt 0:00:11]} 68. Rc8 {[%emt 0:00:07]} f4+ {[%emt 0:00:31]} 69. Kf3 {[%emt 0:00:18]} Rh3+ {[%emt 0:00:36]} 70. Kg2 {[%emt 0:00:30]} Rg3+ {[%emt 0:00:30]} 71. Kf2 {[%emt 0:00:30]} Ra3 {[%emt 0:00:00]} 72. Rg8+ {[%emt 0:00:00]} Kf5 {[%emt 0:00:00]} 1/2-1/2